[Event "44th Chess Olympiad Open 2022"]
[Site "Chennai"]
[Date "2022.07.30"]
[Round "2.15"]
[White "Cornette, Matthieu"]
[Black "Lazov, Toni"]
[Result "1-0"]
[WhiteElo "2551"]
[BlackElo "2374"]
[Annotator "TA"]
[PlyCount "75"]
[EventDate "2022.??.??"]
[TimeControl "60"]

{[%evp 12,74,19,22,31,22,33,17,17,17,43,12,12,14,24,0,0,0,0,-44,0,-3,0,0,0,-18,
0,-20,0,9,11,25,49,49,41,30,35,30,33,0,0,0,47,49,46,57,293,286,732,565,555,555,
554,537,515,487,29989,29990,29990,29990,29990,29991,29998,29999,29999]} 1. d4 {
[%emt 0:00:07]} Nf6 {[%emt 0:00:19]} 2. c4 {[%emt 0:00:06]} g6 {[%emt 0:02:14]}
3. Nc3 {[%emt 0:00:12]} Bg7 {[%emt 0:00:15]} 4. e4 {[%emt 0:00:10]} d6 {
[%emt 0:01:23]} 5. Be2 {[%emt 0:00:28]} O-O {[%emt 0:00:59]} 6. h4 {[%emt 0:00:
00]} c5 {[%emt 0:17:33]} 7. d5 {[%emt 0:00:30]} h5 {[%emt 0:05:55] E73: King's
Indian: Averbakh Variation without 6...c5.} 8. Nf3 {[%emt 0:10:18]} e6 {
[%emt 0:07:49]} 9. Ng5 {[%emt 0:06:08]} exd5 {[%emt 0:03:35] The position is
equal.} 10. exd5 {[%emt 0:00:11]} Re8 {[%emt 0:02:01]} 11. O-O {[%emt 0:08:47]}
Nbd7 {[%emt 0:01:48]} 12. Bf4 {[%emt 0:05:39]} Ne5 {[%emt 0:01:18]} 13. f3 {
[%emt 0:04:07]} a6 {[%emt 0:13:03] [#]} 14. a4 $146 {[%emt 0:06:28]} ({
Predecessor:} 14. Re1 Nfd7 15. Bf1 Nb6 16. Qb3 Bf5 17. Rad1 Rb8 18. Nce4 Nc8
19. Kh2 b5 20. a4 {0-1 (45) Ruckschloss,K (2273)-Mrva,M (2490) Piestany 2005})
14... Bf5 {[%emt 0:04:41]} 15. Kh2 {[%emt 0:02:10]} Qb6 {[%emt 0:02:46]} (15...
Nh7 $5 {[%cal Rh7g5]}) 16. b3 {[%emt 0:02:25]} Re7 {[%emt 0:04:42]} 17. a5 {
[%emt 0:03:57]} Qc7 {[%emt 0:00:51]} 18. Qd2 {[%emt 0:03:25]} Rae8 {[%emt 0:00:
00]} 19. Kh1 {[%emt 0:05:25]} Nfd7 {[%emt 0:12:50]} 20. Nge4 {[%emt 0:06:13]}
Bxe4 {[%emt 0:03:42]} 21. Nxe4 {[%emt 0:03:00]} f5 {[%emt 0:02:47]} 22. Ng5 {
[%emt 0:00:00]} Nf8 {[%emt 0:00:00]} 23. Rab1 {[%emt 0:00:00]} Nf7 {[%emt 0:00:
00]} 24. Bd3 {[%emt 0:00:00]} Be5 {[%emt 0:01:11]} 25. g4 {[%emt 0:16:46][%cal
Yg2g4,Yg4f5,Yf5f6]} Bxf4 {[%emt 0:01:05]} 26. Qxf4 {[%emt 0:00:03] And now
gxh5 would win.} Re3 {[%emt 0:00:53]} (26... Nxg5 $11 27. Qxg5 hxg4) 27. Ne6
$14 {[%emt 0:03:02]} R3xe6 {[%emt 0:00:12]} 28. dxe6 {[%emt 0:00:06]} Ne5 {
[%emt 0:00:04] Black cannot hold the game after this.} (28... Nxe6 $14 29. Qh2
Ne5 30. gxf5 (30. Bxf5 gxf5 31. gxf5 Nd4 $17) 30... Nxd3 31. fxe6 Rxe6) 29.
Bxf5 $1 $18 {[%emt 0:03:24]} gxf5 $2 {[%emt 0:01:21]} (29... Nxe6 30. Bxe6+
Rxe6 31. gxh5 Qh7) 30. gxf5 {[%emt 0:00:06]} Kh8 {[%emt 0:00:30]} 31. Rg1 {
[%emt 0:01:38]} Nh7 {[%emt 0:00:31]} 32. f6 {[%emt 0:04:07] Inhibits Qe7.
aiming for Rg7.} Rxe6 {[%emt 0:00:27]} 33. Rg7 {[%emt 0:00:03] White threatens
Qh6 and mate.} Qc6 {[%emt 0:00:33]} (33... Nf7 {[#]} 34. Rxh7+ $1 Kxh7 35. Qf5+
Kg8 36. Qg6+ Kf8 37. Qg7+ Ke8 38. Qg8+ Kd7 39. Qxf7+ Kd8 40. Qxe6) (33... Rxf6
$18 34. Rxh7+ (34. Rxc7 Rxf4 35. Kg2 Nf8 $17) 34... Kxh7 35. Qxf6 Qf7 36. Qxf7+
Nxf7) 34. Rbg1 {[%emt 0:01:55][%csl Gg1][%cal Rg7g8] White mates.} Ng4 {
[%emt 0:00:27] [#]} 35. Rxh7+ $1 {[%emt 0:01:37] Decoy} Kxh7 {[%emt 0:00:02]}
36. Qf5+ {[%emt 0:00:02]} Kh6 {[%emt 0:01:01]} 37. Qg5+ {[%emt 0:00:05]} Kh7 {
[%emt 0:00:04]} 38. Qg7# {[%emt 0:00:02] Weighted Error Value: White=0.07 
(flawless) /Black=0.36} 1-0

[Event "44th Chess Olympiad Open 2022"]
[Site "Chennai"]
[Date "2022.07.30"]
[Round "2.15"]
[White "Risteski, Emil"]
[Black "Fressinet, Laurent"]
[Result "0-1"]
[WhiteElo "2405"]
[BlackElo "2631"]
[Annotator "TA"]
[PlyCount "102"]
[EventDate "2022.??.??"]
[TimeControl "60"]

{[%evp 10,102,14,5,14,11,10,10,27,11,20,17,10,20,26,8,20,10,8,0,0,0,0,-27,-6,
-48,-17,-68,0,-57,-5,-87,-70,-95,-60,-61,-62,-69,-59,-58,-52,-191,-177,-176,
-184,-193,-167,-690,-614,-975,-315,-310,-54,-66,36,-70,-76,-69,-66,-165,-162,
-158,-160,-181,-161,-195,-175,-530,-505,-469,0,-469,0,-416,-268,-277,-208,-204,
-209,-211,-209,-177,-70,-206,-213,-209,-212,-204,-194,-2415,-2382,-2222,-2044,
-1770,-1685]} 1. e4 {[%emt 0:00:18]} e5 {[%emt 0:00:04]} 2. Nf3 {[%emt 0:00:15]
} Nc6 {[%emt 0:00:04]} 3. Bc4 {[%emt 0:00:15]} Nf6 {[%emt 0:00:05]} 4. d3 {
[%emt 0:00:04]} Bc5 {[%emt 0:00:13]} 5. O-O {[%emt 0:00:34]} d6 {[%emt 0:00:25]
} 6. c3 {[%emt 0:00:13]} a5 {[%emt 0:00:34] C54: Giuoco Piano: 4 c3 Nf6, main
lines with 5 d4 and 5 d3.} 7. Re1 {[%emt 0:00:12]} O-O {[%emt 0:00:27]} 8. h3 {
[%emt 0:01:37]} Be6 {[%emt 0:00:38] The position is equal.} 9. Bxe6 {[%emt 0:
00:00]} fxe6 {[%emt 0:00:37]} 10. Be3 {[%emt 0:06:14]} Bxe3 {[%emt 0:03:18]}
11. Rxe3 {[%emt 0:00:09]} d5 {[%emt 0:00:26]} 12. Nbd2 {[%emt 0:00:27]} d4 {
[%emt 0:01:44]} 13. cxd4 {[%emt 0:00:44]} exd4 {[%emt 0:00:04] [#]} 14. Re2
$146 {[%emt 0:03:58]} ({Predecessor:} 14. Re1 a4 15. Rc1 Nb4 16. Nc4 Nxa2 17.
Ra1 Nb4 18. Rxa4 Rxa4 19. Qxa4 Nxd3 20. Rd1 {1-0 (66) Aronian,L (2781)-Van
Foreest,J (2701) chess24.com INT 2021}) 14... a4 {[%emt 0:10:55]} 15. a3 {
[%emt 0:03:48]} Nd7 {[%emt 0:07:46]} 16. Rc1 {[%emt 0:08:44]} Qe7 {[%emt 0:00:
00]} 17. Re1 {[%emt 0:16:01]} Nc5 {[%emt 0:08:21]} 18. Qe2 {[%emt 0:01:39]} ({
White should try} 18. Qc2 $11 b6 19. Red1) 18... Rf7 {[%emt 0:05:33]} (18... e5
$15) 19. Rf1 {[%emt 0:04:21]} (19. e5 $11) 19... Raf8 {[%emt 0:05:15]} (19...
e5 $15) 20. g3 {[%emt 0:01:24]} (20. e5 $11 {keeps the balance.}) 20... b6 $17
{[%emt 0:05:16]} 21. Ne1 {[%emt 0:12:20]} g5 {[%emt 0:07:23]} 22. Ndf3 {
[%emt 0:00:00]} Qf6 {[%emt 0:06:21]} 23. Rc2 {[%emt 0:03:09]} Kh8 {[%emt 0:00:
00]} 24. Kg2 {[%emt 0:03:10]} Qg7 {[%emt 0:03:58]} 25. h4 {[%emt 0:07:15]} (25.
Qd1 $15) 25... gxh4 $19 {[%emt 0:01:18]} 26. Nxh4 {[%emt 0:00:24]} Ne5 {
[%emt 0:01:04] Prevents Nhf3.} 27. Kh3 {[%emt 0:02:06]} Rg8 {[%emt 0:02:36]
And now ...Ng4 would win.} 28. Rg1 $2 {[%emt 0:03:19]} (28. Kg2) 28... Rf4 {
[%emt 0:04:41][%cal Yf4h4] Strongly threatening ...Rxh4+!} 29. Rg2 {[%emt 0:00:
00] [#]} Rg4 {[%emt 0:03:27]} (29... Ncxd3 $1 {[%cal Yf4h4]} 30. f3 Qh6 $1 31.
Nxd3 Rxg3+ $3 32. Rxg3 Rxh4+ 33. Kg2 Rh1 $1) 30. Rd2 {[%emt 0:00:47] [#]} Qh6
$2 {[%emt 0:05:20]} (30... Nexd3 $1 $19 {[%cal Yg4h4] ( -> ...Rxh4+!)} 31. Rxd3
Rxe4) 31. f4 $15 {[%emt 0:00:29] [#]} Rxh4+ $1 {[%emt 0:01:28]} 32. gxh4 {
[%emt 0:00:06]} Ng6 {[%emt 0:00:52] Black is much more active.} ({Resist} 32...
Qxf4 33. Qf2 Qxf2 34. Rdxf2 $14 (34. Rgxf2 Nb3 $11)) 33. Rxg6 {[%emt 0:00:45]}
Qxg6 $40 {[%emt 0:01:03][%csl Gg8][%cal Rg6g3] Black attacks.} 34. Qf2 {
[%emt 0:01:30] Against Qg3+} ({White should play} 34. Qf3 $15) 34... Nb3 $19 {
[%emt 0:02:11]} 35. Re2 {[%emt 0:01:23]} Qg4+ {[%emt 0:00:07]} 36. Kh2 {
[%emt 0:00:05]} c5 {[%emt 0:00:00]} 37. f5 {[%emt 0:03:34]} e5 {[%emt 0:00:09]}
38. Nf3 $2 {[%emt 0:02:12]} (38. f6) 38... Qf4+ {[%emt 0:00:20]} 39. Kh3 {
[%emt 0:00:00]} Qg4+ {[%emt 0:00:00]} 40. Kh2 {[%emt 0:00:07]} Qf4+ {[%emt 0:
00:04]} 41. Kh3 $1 {[%emt 0:03:52]} h6 {[%emt 0:10:01]} 42. Rc2 {[%emt 0:03:22]
} c4 {[%emt 0:02:17]} 43. Nxe5 {[%emt 0:00:43]} Qxe5 {[%emt 0:01:50]} 44. Rxc4
{[%emt 0:00:05]} Qg7 {[%emt 0:00:00]} 45. Rc6 {[%emt 0:11:57] [#]} Qg4+ {
[%emt 0:00:06]} 46. Kh2 {[%emt 0:00:00]} Kh7 {[%emt 0:00:26]} 47. Rd6 {[%emt 0:
06:12]} Rg7 {[%emt 0:04:21][%cal Yb3d2] ...Nd2! is the strong threat.} 48. f6 {
[%emt 0:00:28] [#]} Nd2 $1 {[%emt 0:00:53][%cal Yd2f1]} 49. fxg7 $2 {[%emt 0:
00:05]} (49. Qf5+ Qxf5 50. exf5 Nf1+ 51. Kh1 Ng3+ 52. Kh2 Nf1+ 53. Kh1 Ng3+ 54.
Kh2 Nf1+) 49... Nf3+ {[%emt 0:00:10] Black is clearly winning.} 50. Qxf3 {
[%emt 0:00:02]} Qxf3 {[%emt 0:00:06]} 51. Rg6 {[%emt 0:00:02]} Kg8 {[%emt 0:00:
36] Weighted Error Value: White=0.56/Black=0.53} 0-1

[Event "44th Chess Olympiad Open 2022"]
[Site "Chennai"]
[Date "2022.07.30"]
[Round "2.15"]
[White "Nikolovski, Nikola"]
[Black "Maurizzi, Marc`Andria"]
[Result "0-1"]
[WhiteElo "2366"]
[BlackElo "2506"]
[Annotator "ChessBase"]
[PlyCount "70"]
[EventDate "2022.??.??"]
[TimeControl "60"]

1. e4 {[%emt 0:00:17]} e5 {[%emt 0:00:26]} 2. Nf3 {[%emt 0:00:46]} Nc6 {
[%emt 0:00:25]} 3. Bc4 {[%emt 0:00:21]} Nf6 {[%emt 0:00:41]} 4. d3 {[%emt 0:00:
00]} h6 {[%emt 0:00:10]} 5. O-O {[%emt 0:01:59]} d6 {[%emt 0:01:51]} 6. a4 {
[%emt 0:12:07]} g5 {[%emt 0:01:15]} 7. a5 {[%emt 0:03:46]} a6 {[%emt 0:10:21]}
8. Be3 {[%emt 0:10:40]} Bg7 {[%emt 0:09:35]} 9. Nc3 {[%emt 0:02:34]} O-O {
[%emt 0:04:44]} 10. d4 {[%emt 0:20:19]} exd4 {[%emt 0:15:54]} 11. Nxd4 {
[%emt 0:02:55]} Ng4 {[%emt 0:00:05]} 12. Nxc6 {[%emt 0:11:35]} bxc6 {[%emt 0:
00:00]} 13. Bd2 {[%emt 0:03:06]} d5 {[%emt 0:12:31]} 14. Be2 {[%emt 0:03:46]}
Nf6 {[%emt 0:03:09]} 15. Bd3 {[%emt 0:05:35]} Bg4 {[%emt 0:05:45]} 16. Qc1 {
[%emt 0:05:20]} Re8 {[%emt 0:01:54]} 17. Re1 {[%emt 0:06:48]} Qd6 {[%emt 0:00:
00]} 18. h3 {[%emt 0:01:56]} Bd7 {[%emt 0:00:12]} 19. Re2 {[%emt 0:00:51]} d4 {
[%emt 0:02:26]} 20. Nd1 {[%emt 0:01:50]} Nh5 {[%emt 0:00:06]} 21. b3 {[%emt 0:
00:00]} g4 {[%emt 0:02:54]} 22. hxg4 {[%emt 0:00:54]} Bxg4 {[%emt 0:00:01]} 23.
f3 {[%emt 0:00:44]} Bd7 {[%emt 0:02:24]} 24. g4 {[%emt 0:00:18]} Be5 {[%emt 0:
00:00]} 25. gxh5 {[%emt 0:00:34]} Kh8 {[%emt 0:00:02]} 26. Rg2 {[%emt 0:02:13]}
Rg8 {[%emt 0:02:37]} 27. Rxg8+ {[%emt 0:00:34]} Rxg8+ {[%emt 0:00:01]} 28. Kf1
{[%emt 0:00:06]} Qf6 {[%emt 0:01:01]} 29. Ke2 {[%emt 0:00:58]} Rg3 {[%emt 0:00:
00]} 30. f4 {[%emt 0:00:29]} Bg4+ {[%emt 0:00:12]} 31. Ke1 {[%emt 0:00:24]} Qh4
{[%emt 0:01:03]} 32. Nf2 {[%emt 0:00:05]} Rg2 {[%emt 0:00:10]} 33. Be3 {
[%emt 0:00:55]} dxe3 {[%emt 0:00:05]} 34. Qxe3 {[%emt 0:00:04]} Bc3+ {[%emt 0:
00:00]} 35. Kf1 {[%emt 0:00:05]} Qh2 {[%emt 0:00:19]} 0-1

[Event "44th Chess Olympiad Open 2022"]
[Site "Chennai"]
[Date "2022.07.30"]
[Round "2.16"]
[White "Sethuraman, S.P..."]
[Black "Ibarra Chami, Luis Fernando"]
[Result "1/2-1/2"]
[WhiteElo "2623"]
[BlackElo "2452"]
[Annotator "TA"]
[PlyCount "158"]
[EventDate "2022.??.??"]
[TimeControl "60"]

{[%evp 16,158,23,12,17,0,0,0,0,0,0,0,16,14,9,7,18,21,34,34,28,27,40,33,26,34,
45,16,27,20,21,18,33,27,29,24,43,-17,-17,-15,-15,-57,-60,-60,-60,-60,-60,-73,
-69,-67,-62,-60,-56,-66,-35,-31,-16,-35,-33,-38,0,-20,-8,-60,-60,-72,-63,-106,
-106,-90,-96,-112,-104,-145,-144,-144,-142,-138,-133,-130,-91,-91,-68,-68,-16,
-15,-15,-19,0,0,0,-5,0,-6,0,-6,-6,-8,-6,-6,-6,-6,0,-6,0,-6,-13,-13,0,0,0,0,0,0,
0,0,0,0,0,0,0,0,0,0,0,0,0,0,0,0,8,0,0,0,0,0,0,0,0,0,0,0,8,8,8]} 1. e4 {[%emt 0:
00:00]} c5 {[%emt 0:00:53]} 2. Nf3 {[%emt 0:00:05]} Nc6 {[%emt 0:00:34]} 3. Bb5
{[%emt 0:00:09]} g6 {[%emt 0:02:02]} 4. O-O {[%emt 0:00:56]} Bg7 {[%emt 0:00:
00]} 5. c3 {[%emt 0:00:18]} e5 {[%emt 0:02:17]} 6. d4 {[%emt 0:01:13]} cxd4 {
[%emt 0:01:28]} 7. cxd4 {[%emt 0:00:09]} exd4 {[%emt 0:01:35]} 8. Bf4 {[%emt 0:
00:00]} a6 {[%emt 0:00:50]} 9. Bc4 {[%emt 0:02:37] Black should prevent Qb3.}
d6 {[%emt 0:02:30] B31: Sicilian: 2...Nc6 3 Bb5 g6.} 10. Qb3 {[%emt 0:16:06]}
Na5 $1 {[%emt 0:07:31]} 11. Bxf7+ {[%emt 0:03:52]} Ke7 $1 {[%emt 0:00:13]} 12.
Qd5 {[%emt 0:00:24]} Nf6 {[%emt 0:00:51]} 13. Bg5 {[%emt 0:02:26]} Rf8 {
[%emt 0:22:51]} 14. e5 {[%emt 0:00:15] Chess con chili.} (14. Nxd4 $2 Rxf7 15.
b4 (15. e5 $2 dxe5 16. Qxe5+ Kf8 $19) 15... Nc6 16. Qxc6 bxc6 $19) 14... dxe5 {
[%emt 0:00:15]} 15. Qxd8+ $1 {[%emt 0:00:52]} (15. Nxe5 Qxd5 16. Bxd5 Kd6 17.
Nc4+ Nxc4 18. Bxc4 Ne4 $17) 15... Rxd8 {[%emt 0:09:02]} 16. Nxe5 {[%emt 0:00:
00] [#]} Nc6 $146 {[%emt 0:04:19]} ({Predecessor:} 16... Bf5 17. Re1 Kf8 18.
Nd2 Rac8 19. Ndf3 Rc7 20. Bd2 Nc6 21. Nxc6 bxc6 22. Ba5 Rxf7 23. Bxd8 {1-0 (39)
Tsydypov,Z (2565)-Khubukshanov,E (2280) Kazan 2021}) 17. Nxc6+ {[%emt 0:01:00]}
bxc6 {[%emt 0:00:03]} 18. Bc4 {[%emt 0:00:38]} Bf5 {[%emt 0:05:51]} 19. Nd2 {
[%emt 0:00:57]} h6 {[%emt 0:14:37]} 20. Bh4 {[%emt 0:02:10]} Kf8 {[%emt 0:00:
00]} 21. Rac1 {[%emt 0:14:25]} a5 {[%emt 0:03:15]} 22. Rfe1 {[%emt 0:07:36]}
Re8 {[%emt 0:05:30]} 23. h3 {[%emt 0:22:34]} Ne4 {[%emt 0:04:57]} 24. Nxe4 {
[%emt 0:00:16]} Bxe4 {[%emt 0:00:42]} 25. Red1 {[%emt 0:03:23]} Bd5 {[%emt 0:
00:00]} 26. Bd3 {[%emt 0:01:36]} (26. Kf1 $14) 26... Kf7 {[%emt 0:00:05]} 27.
Bg3 {[%emt 0:00:23]} Bf8 {[%emt 0:00:48]} 28. Bc4 {[%emt 0:03:16]} Bxc4 {
[%emt 0:00:13]} 29. Rxc4 {[%emt 0:00:05]} c5 {[%emt 0:00:05]} 30. Ra4 {[%emt 0:
00:00]} Ke6 {[%emt 0:01:02]} 31. Bf4 {[%emt 0:01:58]} Kd5 {[%emt 0:00:21]} 32.
Bd2 {[%emt 0:01:27]} g5 {[%emt 0:01:09]} 33. Kf1 {[%emt 0:02:02]} Bd6 {[%emt 0:
00:00]} 34. b3 {[%emt 0:01:12]} Ra7 {[%emt 0:00:22]} 35. Re1 {[%emt 0:03:32]}
Rc8 {[%emt 0:00:29]} 36. Ke2 {[%emt 0:00:53]} Rf8 {[%emt 0:00:09] And now ...
Re7+ would win.} 37. Rf1 {[%emt 0:01:23]} Bg3 {[%emt 0:01:08]} 38. Kd3 {
[%emt 0:03:31]} Bf4 {[%emt 0:00:55]} ({Resist} 38... Bxf2 39. Rxa5 Rxa5 40.
Bxa5 $16) ({Much less strong is} 38... Rxf2 39. Rxf2 Bxf2 40. Rxa5 $16) 39. Be1
{[%emt 0:00:47]} ({Of course not} 39. Rxa5 Rxa5 40. Bxa5 Ra8 $19) (39. Bxf4 $1
$11 gxf4 40. Re1) 39... h5 $15 {[%emt 0:00:35]} 40. Kc2 {[%emt 0:03:27]} Re8 {
[%emt 0:00:20]} 41. g3 {[%emt 0:30:36]} Bc7 $36 {[%emt 0:30:50] Black is on
the roll.} 42. Bd2 {[%emt 0:00:00]} Rf8 {[%emt 0:00:00]} 43. g4 {[%emt 0:00:00]
[#]} Bd8 $1 {[%emt 0:00:00]} 44. gxh5 {[%emt 0:00:00]} Rf3 {[%emt 0:00:00]} 45.
h6 {[%emt 0:00:00]} Rxh3 {[%emt 0:00:00]} 46. Rg1 {[%emt 0:00:00]} Rxh6 {
[%emt 0:00:00]} 47. Bxg5 {[%emt 0:00:00]} Rg6 {[%emt 0:00:00]} 48. f4 {[%emt 0:
00:00]} Rf7 {[%emt 0:00:03] [#] White must now prevent ...Rxf4.} 49. Rc1 {
[%emt 0:00:00]} Bxg5 {[%emt 0:00:59]} ({Black should try} 49... Bb6 $15) 50.
fxg5 {[%emt 0:00:00] Endgame KRR-KRR. The position is equal.} Ra7 {[%emt 0:01:
00]} 51. Rg1 {[%emt 0:00:00]} Ke4 {[%emt 0:01:36]} 52. Rc4 {[%emt 0:00:00]} Kd5
{[%emt 0:00:40]} 53. Ra4 {[%emt 0:00:00]} Ke4 {[%emt 0:01:09]} 54. Kb2 {
[%emt 0:00:00]} Kd5 {[%emt 0:00:33]} 55. Rg2 {[%emt 0:00:00]} Kc6 {[%emt 0:00:
15]} 56. Rc4 {[%emt 0:00:00]} Rd7 {[%emt 0:00:57]} 57. Rc1 {[%emt 0:00:00]} Rd5
{[%emt 0:00:10]} 58. Rcg1 {[%emt 0:00:00]} a4 {[%emt 0:00:10]} 59. Kc2 {
[%emt 0:00:00]} Rf5 {[%emt 0:00:22]} 60. Rg3 {[%emt 0:00:00]} Rf2+ {[%emt 0:00:
17]} 61. Kb1 $1 {[%emt 0:00:16]} a3 {[%emt 0:00:22]} 62. R3g2 {[%emt 0:00:44]}
Rf5 {[%emt 0:01:22]} 63. Kc2 {[%emt 0:00:12]} Kd5 {[%emt 0:00:09]} 64. Kd3 {
[%emt 0:00:07]} Rf3+ {[%emt 0:00:19]} 65. Ke2 {[%emt 0:00:05]} Rh3 {[%emt 0:01:
02]} 66. Kd2 {[%emt 0:00:57]} Re3 {[%emt 0:00:00]} 67. Rf1 {[%emt 0:00:34]} Re5
{[%emt 0:00:10]} 68. Rfg1 {[%emt 0:00:06]} Rf5 {[%emt 0:00:34]} 69. Kd3 {
[%emt 0:00:08]} Rf3+ {[%emt 0:00:23]} 70. Ke2 {[%emt 0:00:03]} Rc3 {[%emt 0:00:
04]} 71. Kd2 {[%emt 0:00:43]} c4 {[%emt 0:00:00]} 72. bxc4+ {[%emt 0:00:05]}
Kxc4 {[%emt 0:00:11] ...Rb6 is the strong threat.} 73. Rc1 {[%emt 0:00:06]}
Rxc1 {[%emt 0:00:16]} 74. Kxc1 $11 {[%emt 0:00:00] KR-KR} Kc3 {[%emt 0:00:15]}
75. Rc2+ {[%emt 0:00:52]} Kd3 {[%emt 0:00:00]} 76. Rg2 {[%emt 0:00:06]} Ke3 {
[%emt 0:00:22]} 77. Kd1 {[%emt 0:01:13]} Kf3 {[%emt 0:01:02]} 78. Rg1 {[%emt 0:
00:56]} Kf4 {[%emt 0:01:31]} 79. Kd2 {[%emt 0:00:07]} Rxg5 {[%emt 0:00:13]
Weighted Error Value: White=0.10 (very precise) /Black=0.07 (flawless)} 1/2-1/2

[Event "44th Chess Olympiad Open 2022"]
[Site "Chennai"]
[Date "2022.07.30"]
[Round "2.16"]
[White "Karthikeyan, Murali"]
[Black "Capo Vidal, Uriel"]
[Result "1-0"]
[WhiteElo "2613"]
[BlackElo "2215"]
[Annotator "TA"]
[PlyCount "69"]
[EventDate "2022.??.??"]
[TimeControl "60"]

{[%evp 25,69,23,20,22,77,67,69,53,69,60,184,192,187,193,218,209,266,271,579,
572,521,444,568,573,566,548,554,537,674,648,700,641,689,666,623,679,675,669,
654,636,11700,7158,2902,2607,29981,12842]} 1. e4 {[%emt 0:00:04]} c5 {[%emt 0:
00:00]} 2. Nf3 {[%emt 0:00:04][%cal Yg1f3,Yf3d4,Yd4b5,Yb5a3,Ya3c2,Yc2e3]} Nc6 {
[%emt 0:00:15]} 3. d4 {[%emt 0:00:06]} cxd4 {[%emt 0:00:35]} 4. Nxd4 {[%emt 0:
00:06]} Nf6 {[%emt 0:00:38]} 5. Nc3 {[%emt 0:00:06]} e5 {[%emt 0:00:00]} 6.
Ndb5 {[%emt 0:00:22]} d6 {[%emt 0:00:22]} 7. Bg5 {[%emt 0:00:17]} a6 {[%emt 0:
00:19]} 8. Na3 {[%emt 0:00:06]} b5 {[%emt 0:00:11]} 9. Nd5 {[%emt 0:00:00]} Be7
{[%emt 0:01:12]} 10. Bxf6 {[%emt 0:00:10]} Bxf6 {[%emt 0:00:08]} 11. c3 {
[%emt 0:00:07]} O-O {[%emt 0:02:35]} 12. Nc2 {[%emt 0:00:18]} Rb8 {[%emt 0:00:
00] is currently scoring better than 12...Bg5.} 13. h4 {[%emt 0:00:25]} Be6 {
[%emt 0:08:31]} 14. Nce3 {[%emt 0:07:59] B33: Sicilian: Pelikan and Sveshnikov
Variations.} b4 {[%emt 0:23:04]} (14... Be7 $11 {remains equal.}) 15. Bxa6 $16
{[%emt 0:07:42] White is more active.} (15. Nxf6+ Qxf6 16. Bxa6 (16. Qxd6 bxc3
17. bxc3 Rb2 $11) 16... bxc3 17. bxc3 Rfd8 $11) 15... bxc3 {[%emt 0:01:01]} 16.
bxc3 {[%emt 0:00:11] White is slightly better.} Qa5 {[%emt 0:03:44]} 17. Bc4 {
[%emt 0:04:59][%cal Ya6c4,Yc4b3,Yb3e6] [#]} Ne7 $146 {[%emt 0:06:38]} (17...
Bd8 $14) ({Predecessor:} 17... Kh8 18. Bb3 Bd8 19. Nc4 Qc5 20. Qf3 f5 21. Nce3
Bb6 22. exf5 e4 23. Qe2 Bxd5 24. Nxd5 {0-1 (42) Liu,S (1637)-Schnepel,T (1789)
Neustadt an der Weinstrasse 2019}) 18. Nxf6+ $18 {[%emt 0:01:48]} gxf6 {
[%emt 0:00:29] [#]} 19. O-O $1 {[%emt 0:02:31]} Qc5 {[%emt 0:06:08]} 20. Bb3 {
[%emt 0:04:10]} ({Don't take} 20. Bxe6 fxe6 21. Qg4+ Kf7) 20... f5 {[%emt 0:12:
00]} 21. Qh5 {[%emt 0:02:21]} f4 $2 {[%emt 0:09:59] [#]} (21... Kh8 22. exf5 e4
) 22. Qg5+ $1 {[%emt 0:01:55]} Kh8 {[%emt 0:04:13]} 23. Qf6+ {[%emt 0:01:47]}
Kg8 {[%emt 0:00:03] [#]} 24. h5 $1 {[%emt 0:16:10][%cal Yh5h6] Threatening
mate with h6!} h6 {[%emt 0:01:12]} 25. Bxe6 {[%emt 0:00:00]} ({Weaker is} 25.
Qxe7 Bxb3 26. Nf5 (26. axb3 fxe3 27. Qf6 Qxc3 $18) 26... Be6 $16) 25... fxe3 {
[%emt 0:08:55]} 26. Bb3 {[%emt 0:01:21]} Rb7 {[%emt 0:04:44]} 27. Qxh6 {
[%emt 0:01:50]} d5 {[%emt 0:03:11]} 28. fxe3 {[%emt 0:04:29] Hoping for Rf6.}
Rb6 {[%emt 0:01:07]} 29. Rf6 {[%emt 0:04:04]} Rxf6 {[%emt 0:00:58]} 30. Qxf6 {
[%emt 0:00:05] aiming for Re1.} Kh7 {[%emt 0:00:00]} 31. exd5 {[%emt 0:02:32]
White wants to mate with Bc2+.} Qxe3+ {[%emt 0:00:33]} 32. Kh1 {[%emt 0:01:19]}
Rg8 {[%emt 0:00:19]} 33. Bc2+ {[%emt 0:01:02]} e4 {[%emt 0:00:04]} 34. Qxe7 {
[%emt 0:00:20]} Rg4 {[%emt 0:00:00]} 35. Rf1 {[%emt 0:01:11] White took
control after the opening. Weighted Error Value: White=0.01 (flawless) /
Black=0.75} 1-0